[Event "Championnat d'Europe de Blitz"]
[Date "2024.12.09"]
[White "Sarana, Alexey"]
[Black "Malicka, Maria"]
[WhiteElo "2674"]
[BlackElo "2206"]
[Round "1.1"]
[Result "1-0"]
[TimeControl "180+2"]

1. d4 {[%emt 00:00:01] [%clk 00:03:03]} Nf6 {[%emt 00:00:01] [%clk 00:03:03]} 2.
c4 {[%emt 00:00:10] [%clk 00:03:04]} e6 {[%clk 00:03:04]} 3. Nc3 {[%clk
00:03:05]} Bb4 {[%clk 00:03:05]} 4. Nf3 {[%clk 00:03:05]} b6 {[%emt 00:00:12]
[%clk 00:02:58]} 5. e3 {[%clk 00:03:05]} Bb7 {[%clk 00:02:59]} 6. Bd3 {[%clk
00:03:06]} O-O {[%emt 00:00:07] [%clk 00:02:52]} 7. O-O {[%emt 00:00:01] [%clk
00:03:05]} Bxc3 {[%emt 00:00:10] [%clk 00:02:45]} 8. bxc3 {[%emt 00:00:02] [%clk
00:03:06]} d6 {[%emt 00:00:06] [%clk 00:02:41]} 9. Nd2 {[%emt 00:00:06] [%clk
00:03:01]} e5 {[%emt 00:00:10] [%clk 00:02:33]} 10. e4 {[%emt 00:00:01] [%clk
00:03:02]} Nc6 {[%emt 00:00:12] [%clk 00:02:24]} 11. Nb3 {[%emt 00:00:16] [%clk
00:02:47]} Re8 {[%emt 00:00:15] [%clk 00:02:11]} 12. f3 {[%emt 00:00:02] [%clk
00:02:47]} Ne7 {[%emt 00:00:19] [%clk 00:01:55]} 13. Re1 {[%emt 00:00:18] [%clk
00:02:30]} Ng6 {[%emt 00:00:02] [%clk 00:01:55]} 14. Nd2 {[%emt 00:00:01] [%clk
00:02:31]} Qd7 {[%emt 00:00:14] [%clk 00:01:43]} 15. Nf1 {[%emt 00:00:02] [%clk
00:02:31]} a5 {[%emt 00:00:08] [%clk 00:01:38]} 16. Ne3 {[%emt 00:00:01] [%clk
00:02:31]} Ne7 {[%emt 00:00:07] [%clk 00:01:33]} 17. Nd5 {[%emt 00:00:07] [%clk
00:02:26]} Nexd5 {[%emt 00:00:07] [%clk 00:01:28]} 18. cxd5 {[%emt 00:00:03]
[%clk 00:02:25]} Ba6 {[%emt 00:00:06] [%clk 00:01:24]} 19. Bc2 {[%emt 00:00:12]
[%clk 00:02:15]} Bc4 {[%emt 00:00:06] [%clk 00:01:21]} 20. Be3 {[%emt 00:00:01]
[%clk 00:02:15]} a4 {[%emt 00:00:09] [%clk 00:01:14]} 21. Qd2 {[%emt 00:00:03]
[%clk 00:02:14]} b5 {[%emt 00:00:05] [%clk 00:01:12]} 22. a3 {[%emt 00:00:01]
[%clk 00:02:14]} h6 {[%emt 00:00:10] [%clk 00:01:03]} 23. Rab1 {[%emt 00:00:05]
[%clk 00:02:11]} Rab8 {[%emt 00:00:04]} 24. Rb2 {[%emt 00:00:01] [%clk
00:02:11]} c6 {[%emt 00:00:13] [%clk 00:00:52]} 25. dxc6 {[%emt 00:00:03] [%clk
00:02:10]} Qxc6 {[%emt 00:00:02] [%clk 00:00:53]} 26. Qf2 {[%emt 00:00:04] [%clk
00:02:07]} Nd7 {[%emt 00:00:19] [%clk 00:00:36]} 27. f4 {[%emt 00:00:06] [%clk
00:02:04]} exf4 {[%emt 00:00:07] [%clk 00:00:30]} 28. Bxf4 {[%emt 00:00:02]
[%clk 00:02:04]} Rbc8 {[%emt 00:00:05] [%clk 00:00:27]} 29. Qg3 {[%emt 00:00:04]
[%clk 00:02:02]} d5 {[%emt 00:00:05] [%clk 00:00:24]} 30. e5 {[%emt 00:00:03]
[%clk 00:02:00]} Nf8 {[%emt 00:00:03] [%clk 00:00:24]} 31. Bb1 {[%emt 00:00:01]
[%clk 00:02:01]} Ng6 {[%emt 00:00:02] [%clk 00:00:24]} 32. Rf2 {[%emt 00:00:05]
[%clk 00:01:58]} Nxf4 {[%emt 00:00:03] [%clk 00:00:24]} 33. Qxf4 {[%emt
00:00:01] [%clk 00:01:58]} Qe6 {[%emt 00:00:02] [%clk 00:00:24]} 34. Bf5 {[%emt
00:00:01] [%clk 00:01:58]} Qe7 {[%emt 00:00:01] [%clk 00:00:25]} 35. e6 {[%emt
00:00:20] [%clk 00:01:40]} f6 {[%emt 00:00:05] [%clk 00:00:22]} 36. Qg4 {[%emt
00:00:02] [%clk 00:01:41]} g5 {[%emt 00:00:05] [%clk 00:00:19]} 37. Qh5 {[%emt
00:00:02] [%clk 00:01:41]} Qg7 {[%emt 00:00:07] [%clk 00:00:13]} 38. Bg6 {[%emt
00:00:02] [%clk 00:01:42]} Re7 {[%emt 00:00:01] [%clk 00:00:14]} 39. Bf7+ {[%emt
00:00:03] [%clk 00:01:40]} Kh7 {[%emt 00:00:11] [%clk 00:00:05]} 40. Re3 {[%emt
00:00:01] [%clk 00:01:40]} Rf8 {[%emt 00:00:03] [%clk 00:00:05]} 41. Rff3 {[%emt
00:00:15] [%clk 00:01:27]} Rfxf7 {[%emt 00:00:02] [%clk 00:00:05]} 42. exf7
{[%emt 00:00:02] [%clk 00:01:27]} Rxf7 {[%emt 00:00:02] [%clk 00:00:05]} 43. Re6
{[%emt 00:00:08] [%clk 00:01:22]} f5 {[%emt 00:00:01] [%clk 00:00:05]} 44. Rxh6+
{[%emt 00:00:06] [%clk 00:01:18]} Qxh6 {[%emt 00:00:03] [%clk 00:00:05]} 45.
Qxf7+ {[%emt 00:00:01] [%clk 00:01:18]} Qg7 {[%emt 00:00:02] [%clk 00:00:05]}
46. Rh3# {[%emt 00:00:01] [%clk 00:01:19]} 1-0

[Site "Europe Echecs"]

[Event "Championnat d'Europe de Blitz"]
[Date "2024.12.09"]
[White "Balinski, Damian"]
[Black "Navara, David"]
[WhiteElo "2203"]
[BlackElo "2665"]
[Round "1.2"]
[Result "0-1"]
[TimeControl "180+2"]

1. d4 {[%emt 00:00:01] [%clk 00:03:03]} Nf6 {[%emt 00:00:09] [%clk 00:03:03]} 2.
c4 {[%clk 00:03:02]} e6 {[%clk 00:03:04]} 3. Nc3 {[%clk 00:03:03]} Bb4 {[%clk
00:03:05]} 4. Qc2 {[%clk 00:03:04]} d5 {[%emt 00:00:01] [%clk 00:03:06]} 5. cxd5
{[%emt 00:00:11] [%clk 00:03:01]} exd5 {[%clk 00:03:06]} 6. Bg5 {[%clk
00:03:01]} c5 {[%emt 00:00:11] [%clk 00:02:53]} 7. a3 {[%emt 00:00:08] [%clk
00:02:55]} Bxc3+ {[%emt 00:00:06] [%clk 00:02:49]} 8. bxc3 {[%emt 00:00:01]
[%clk 00:02:56]} h6 {[%emt 00:00:16] [%clk 00:02:35]} 9. Bxf6 {[%emt 00:00:17]
[%clk 00:02:41]} Qxf6 {[%emt 00:00:02] [%clk 00:02:35]} 10. Nf3 {[%emt 00:00:14]
[%clk 00:02:29]} O-O {[%emt 00:00:10] [%clk 00:02:27]} 11. e3 {[%emt 00:00:11]
[%clk 00:02:20]} c4 {[%emt 00:00:27] [%clk 00:02:02]} 12. Be2 {[%emt 00:00:58]
[%clk 00:01:24]} Bf5 {[%emt 00:00:01] [%clk 00:02:02]} 13. Qb2 {[%emt 00:00:01]
[%clk 00:01:25]} Qb6 {[%emt 00:00:02] [%clk 00:02:02]} 14. Ra2 {[%emt 00:00:41]
[%clk 00:00:46]} Nd7 {[%emt 00:01:07] [%clk 00:00:57]} 15. O-O {[%emt 00:00:03]
[%clk 00:00:44]} Rfe8 {[%emt 00:00:07] [%clk 00:00:53]} 16. Qb4 {[%emt 00:00:05]
[%clk 00:00:41]} a5 {[%emt 00:00:14] [%clk 00:00:41]} 17. Qb2 {[%emt 00:00:07]
[%clk 00:00:36]} Qc6 {[%emt 00:00:08] [%clk 00:00:35]} 18. Bd1 {[%emt 00:00:10]
[%clk 00:00:28]} b5 {[%emt 00:00:14] [%clk 00:00:24]} 19. Bc2 {[%emt 00:00:04]
[%clk 00:00:25]} Bxc2 {[%emt 00:00:03] [%clk 00:00:23]} 20. Qxc2 {[%emt
00:00:01] [%clk 00:00:26]} Reb8 {[%emt 00:00:05] [%clk 00:00:20]} 21. Rb1 {[%emt
00:00:02] [%clk 00:00:26]} Rb6 {[%emt 00:00:02] [%clk 00:00:21]} 22. Rab2 {[%emt
00:00:03] [%clk 00:00:25]} Rab8 {[%emt 00:00:01] [%clk 00:00:22]} 23. h3 {[%emt
00:00:16] [%clk 00:00:11]} Qd6 {[%emt 00:00:02] [%clk 00:00:22]} 24. Ra2 {[%emt
00:00:01] [%clk 00:00:12]} g6 {[%emt 00:00:09] [%clk 00:00:15]} 25. g3 {[%emt
00:00:02] [%clk 00:00:11]} Kg7 {[%emt 00:00:01] [%clk 00:00:16]} 26. Kg2 {[%clk
00:00:12]} R8b7 {[%emt 00:00:07] [%clk 00:00:12]} 27. e4 {[%emt 00:00:01] [%clk
00:00:13]} dxe4 {[%emt 00:00:01] [%clk 00:00:12]} 28. Qxe4 {[%emt 00:00:02]
[%clk 00:00:13]} Nf6 {[%emt 00:00:01] [%clk 00:00:12]} 29. Qc2 {[%emt 00:00:10]
[%clk 00:00:05]} Nd5 {[%emt 00:00:06] [%clk 00:00:08]} 30. Re1 {[%emt 00:00:02]
[%clk 00:00:05]} b4 {[%emt 00:00:04] [%clk 00:00:07]} 31. axb4 {[%emt 00:00:03]
[%clk 00:00:04]} axb4 {[%clk 00:00:08]} 32. Ra8 {[%emt 00:00:03] [%clk
00:00:03]} b3 {[%emt 00:00:05] [%clk 00:00:05]} 33. Qe4 {[%emt 00:00:01] [%clk
00:00:04]} Rb8 {[%emt 00:00:02] [%clk 00:00:05]} 34. Ra7 {[%emt 00:00:03] [%clk
00:00:03]} R6b7 {[%clk 00:00:06]} 35. Rxb7 {[%emt 00:00:02] [%clk 00:00:03]}
Rxb7 {[%emt 00:00:01] [%clk 00:00:07]} 36. Qe8 {[%emt 00:00:03] [%clk 00:00:00]}
0-1

[Site "Europe Echecs"]

[Event "Championnat d'Europe de Blitz"]
[Date "2024.12.09"]
[White "Fedoseev, Vladimir"]
[Black "Nikolaev, Georgi"]
[WhiteElo "2709"]
[BlackElo "2032"]
[Round "1.3"]
[Result "1-0"]
[TimeControl "180+2"]

1. Nc3 {[%emt 00:00:23] [%clk 00:02:43]} e5 {[%emt 00:00:02] [%clk 00:03:00]} 2.
e3 {[%emt 00:00:03] [%clk 00:02:43]} d5 {[%emt 00:00:04] [%clk 00:02:57]} 3. Qh5
{[%emt 00:00:01] [%clk 00:02:43]} Nc6 {[%emt 00:00:20] [%clk 00:02:40]} 4. Bb5
{[%emt 00:00:01] [%clk 00:02:44]} Qd6 {[%emt 00:00:05] [%clk 00:02:37]} 5. Nf3
{[%emt 00:00:28] [%clk 00:02:17]} e4 {[%emt 00:00:28] [%clk 00:02:12]} 6. Qe5+
{[%emt 00:00:01] [%clk 00:02:18]} Qxe5 {[%emt 00:00:36] [%clk 00:01:39]} 7. Nxe5
{[%emt 00:00:01] [%clk 00:02:18]} Nge7 {[%emt 00:00:01] [%clk 00:01:40]} 8. d3
{[%emt 00:00:19] [%clk 00:02:01]} exd3 {[%emt 00:00:09] [%clk 00:01:33]} 9. cxd3
{[%emt 00:00:02] [%clk 00:02:02]} Bf5 {[%emt 00:00:20] [%clk 00:01:14]} 10. e4
{[%emt 00:00:07] [%clk 00:01:56]} dxe4 {[%emt 00:00:05] [%clk 00:01:12]} 11.
dxe4 {[%clk 00:01:57]} Be6 {[%emt 00:00:07] [%clk 00:01:08]} 12. Be3 {[%emt
00:00:10] [%clk 00:01:49]} a6 {[%emt 00:00:12] [%clk 00:00:58]} 13. Nxc6 {[%emt
00:00:06] [%clk 00:01:45]} Nxc6 {[%emt 00:00:09] [%clk 00:00:51]} 14. Bxc6+
{[%emt 00:00:12] [%clk 00:01:35]} bxc6 {[%clk 00:00:52]} 15. O-O {[%emt
00:00:13] [%clk 00:01:24]} Rb8 {[%emt 00:00:05] [%clk 00:00:49]} 16. b3 {[%emt
00:00:02] [%clk 00:01:24]} Bb4 {[%emt 00:00:07] [%clk 00:00:45]} 17. Na4 {[%emt
00:00:01] [%clk 00:01:24]} O-O {[%emt 00:00:10] [%clk 00:00:37]} 18. Rac1 {[%emt
00:00:02] [%clk 00:01:24]} Bd7 {[%emt 00:00:06] [%clk 00:00:33]} 19. Rfd1 {[%emt
00:00:02] [%clk 00:01:24]} Rfd8 {[%emt 00:00:09] [%clk 00:00:26]} 20. Bc5 {[%emt
00:00:01] [%clk 00:01:24]} Bxc5 {[%emt 00:00:14] [%clk 00:00:15]} 21. Nxc5
{[%emt 00:00:01] [%clk 00:01:25]} Be8 {[%emt 00:00:04] [%clk 00:00:13]} 22. Nxa6
{[%emt 00:00:05] [%clk 00:01:23]} Rxd1+ {[%emt 00:00:08] [%clk 00:00:07]} 23.
Rxd1 {[%emt 00:00:01] [%clk 00:01:24]} Rc8 {[%emt 00:00:01] [%clk 00:00:08]} 24.
a4 {[%emt 00:00:07] [%clk 00:01:19]} Kf8 {[%emt 00:00:03] [%clk 00:00:07]} 25.
f3 {[%clk 00:01:19]} Ke7 {[%emt 00:00:02] [%clk 00:00:07]} 26. Kf2 {[%emt
00:00:01] [%clk 00:01:20]} f6 {[%emt 00:00:04] [%clk 00:00:05]} 27. b4 {[%emt
00:00:06] [%clk 00:01:16]} Bf7 {[%emt 00:00:02] [%clk 00:00:05]} 28. Nc5 {[%emt
00:00:02] [%clk 00:01:17]} Be8 {[%emt 00:00:03] [%clk 00:00:04]} 29. a5 {[%emt
00:00:02] [%clk 00:01:17]} Rb8 {[%emt 00:00:01] [%clk 00:00:05]} 30. Rd4 {[%emt
00:00:05] [%clk 00:01:13]} 1-0

[Site "Europe Echecs"]

[Event "Championnat d'Europe de Blitz"]
[Date "2024.12.09"]
[White "Velickovski-Nejkovic, Maja"]
[Black "Korobov, Anton"]
[WhiteElo "1959"]
[BlackElo "2629"]
[Round "1.4"]
[Result "0-1"]
[TimeControl "180+2"]

1. c4 {[%clk 00:03:03]} Nf6 {[%emt 00:00:10] [%clk 00:03:01]} 2. Nc3 {[%clk
00:03:03]} g6 {[%clk 00:03:02]} 3. d4 {[%clk 00:03:04]} Bg7 {[%clk 00:03:03]} 4.
e4 {[%clk 00:03:05]} d6 {[%clk 00:03:04]} 5. Be3 {[%emt 00:00:02] [%clk
00:03:04]} O-O {[%emt 00:00:10] [%clk 00:02:59]} 6. f3 {[%clk 00:03:05]} Nc6
{[%emt 00:00:02] [%clk 00:02:58]} 7. Bd3 {[%emt 00:00:02] [%clk 00:03:04]} e5
{[%emt 00:00:13] [%clk 00:02:48]} 8. d5 {[%emt 00:00:02] [%clk 00:03:04]} Nd4
{[%emt 00:00:01] [%clk 00:02:49]} 9. Nge2 {[%emt 00:00:02] [%clk 00:03:05]} Nh5
{[%emt 00:00:01] [%clk 00:02:49]} 10. Qd2 {[%emt 00:00:03] [%clk 00:03:04]} c5
{[%emt 00:00:05] [%clk 00:02:46]} 11. dxc6 {[%emt 00:00:02] [%clk 00:03:04]}
bxc6 {[%emt 00:00:02] [%clk 00:02:47]} 12. O-O {[%emt 00:00:05] [%clk 00:03:00]}
Be6 {[%emt 00:00:08] [%clk 00:02:41]} 13. b3 {[%emt 00:00:02] [%clk 00:03:00]}
f5 {[%emt 00:00:09] [%clk 00:02:34]} 14. Rad1 {[%emt 00:00:02] [%clk 00:02:59]}
f4 {[%emt 00:00:33] [%clk 00:02:04]} 15. Bf2 {[%emt 00:00:03] [%clk 00:02:58]}
g5 {[%emt 00:00:02] [%clk 00:02:05]} 16. Bb1 {[%emt 00:00:07] [%clk 00:02:52]}
c5 {[%emt 00:00:02] [%clk 00:02:05]} 17. Nd5 {[%emt 00:00:02] [%clk 00:02:52]}
g4 {[%emt 00:00:04] [%clk 00:02:03]} 18. Qd3 {[%emt 00:00:05] [%clk 00:02:49]}
g3 {[%emt 00:00:04] [%clk 00:02:01]} 19. hxg3 {[%emt 00:00:07] [%clk 00:02:44]}
Nxe2+ {[%emt 00:00:06] [%clk 00:01:58]} 20. Qxe2 {[%emt 00:00:02] [%clk
00:02:43]} fxg3 {[%emt 00:00:02] [%clk 00:01:58]} 21. Be3 {[%emt 00:01:21] [%clk
00:01:23]} Qh4 {[%emt 00:00:05] [%clk 00:01:55]} 22. Rfe1 {[%emt 00:00:04] [%clk
00:01:22]} Nf4 {[%emt 00:00:38] [%clk 00:01:19]} 23. Qd2 {[%emt 00:00:28] [%clk
00:00:56]} Qh2+ {[%emt 00:00:08] [%clk 00:01:12]} 24. Kf1 {[%emt 00:00:01] [%clk
00:00:57]} Nxg2 {[%emt 00:00:04] [%clk 00:01:11]} 0-1

[Site "Europe Echecs"]

[Event "Championnat d'Europe de Blitz"]
[Date "2024.12.09"]
[White "Qorri, Fatmir"]
[Black "Deac, Bogdan-Daniel"]
[WhiteElo "1995"]
[BlackElo "2696"]
[Round "1.6"]
[Result "0-1"]
[TimeControl "180+2"]

1. e4 {[%emt 00:00:15] [%clk 00:02:46]} b6 {[%emt 00:00:06] [%clk 00:02:59]} 2.
d4 {[%emt 00:00:02] [%clk 00:02:47]} Bb7 {[%emt 00:00:01] [%clk 00:02:59]} 3.
Nc3 {[%emt 00:00:01] [%clk 00:02:48]} e6 {[%emt 00:00:02] [%clk 00:02:59]} 4. f3
{[%emt 00:00:06] [%clk 00:02:44]} d5 {[%emt 00:00:07] [%clk 00:02:54]} 5. e5
{[%emt 00:00:04] [%clk 00:02:42]} c5 {[%emt 00:00:02] [%clk 00:02:54]} 6. Be3
{[%emt 00:00:08] [%clk 00:02:36]} cxd4 {[%emt 00:00:07] [%clk 00:02:49]} 7. Bxd4
{[%emt 00:00:01] [%clk 00:02:37]} Nc6 {[%emt 00:00:03] [%clk 00:02:48]} 8. Bb5
{[%emt 00:00:03] [%clk 00:02:37]} Nge7 {[%emt 00:00:03] [%clk 00:02:46]} 9. Nge2
{[%emt 00:00:01] [%clk 00:02:38]} a6 {[%emt 00:00:02] [%clk 00:02:46]} 10. Ba4
{[%emt 00:00:12] [%clk 00:02:28]} b5 {[%emt 00:00:05] [%clk 00:02:43]} 11. Bb3
{[%emt 00:00:01] [%clk 00:02:29]} Nf5 {[%emt 00:00:17] [%clk 00:02:28]} 12. f4
{[%emt 00:00:14] [%clk 00:02:17]} Ncxd4 {[%emt 00:00:18] [%clk 00:02:13]} 13.
Nxd4 {[%clk 00:02:18]} Qh4+ {[%emt 00:00:02] [%clk 00:02:13]} 14. g3 {[%emt
00:00:45] [%clk 00:01:36]} Nxg3 {[%emt 00:00:03] [%clk 00:02:12]} 15. hxg3
{[%emt 00:00:01] [%clk 00:01:37]} Qxh1+ {[%emt 00:00:04] [%clk 00:02:10]} 16.
Kd2 {[%clk 00:01:38]} Qxd1+ {[%emt 00:00:07] [%clk 00:02:05]} 17. Rxd1 {[%clk
00:01:39]} Bc5 {[%emt 00:00:09] [%clk 00:01:58]} 18. Nce2 {[%emt 00:00:10] [%clk
00:01:31]} h5 {[%emt 00:00:23] [%clk 00:01:36]} 19. Rh1 {[%emt 00:00:11] [%clk
00:01:23]} O-O-O {[%emt 00:00:09] [%clk 00:01:30]} 20. c3 {[%clk 00:01:24]} Kb8
{[%emt 00:00:27] [%clk 00:01:05]} 21. a4 {[%emt 00:00:02] [%clk 00:01:25]} b4
{[%emt 00:00:03] [%clk 00:01:03]} 22. Bc2 {[%clk 00:01:26]} bxc3+ {[%emt
00:00:14] [%clk 00:00:52]} 23. bxc3 {[%emt 00:00:01] [%clk 00:01:27]} g6 {[%emt
00:00:04] [%clk 00:00:49]} 24. Bd3 {[%emt 00:00:03] [%clk 00:01:26]} Ka7 {[%emt
00:00:03] [%clk 00:00:49]} 25. Nb3 {[%emt 00:00:11] [%clk 00:01:17]} d4 {[%emt
00:00:07] [%clk 00:00:44]} 26. Rb1 {[%emt 00:00:24] [%clk 00:00:56]} dxc3+
{[%emt 00:00:02] [%clk 00:00:43]} 27. Nxc3 {[%emt 00:00:02] [%clk 00:00:56]} Bb4
{[%emt 00:00:04] [%clk 00:00:40]} 28. Nc1 {[%emt 00:00:06] [%clk 00:00:52]}
Bxc3+ {[%emt 00:00:10] [%clk 00:00:33]} 29. Kxc3 {[%clk 00:00:53]} h4 {[%emt
00:00:03] [%clk 00:00:32]} 30. gxh4 {[%emt 00:00:08] [%clk 00:00:48]} Rxh4
{[%emt 00:00:01] [%clk 00:00:32]} 31. Ne2 {[%emt 00:00:05] [%clk 00:00:46]} Rh3
{[%emt 00:00:02] [%clk 00:00:31]} 32. Rd1 {[%emt 00:00:20] [%clk 00:00:29]} Bf3
{[%emt 00:00:15] [%clk 00:00:18]} 33. Kd2 {[%emt 00:00:14] [%clk 00:00:18]} Bg4
{[%emt 00:00:08] [%clk 00:00:11]} 34. Kc2 {[%emt 00:00:15] [%clk 00:00:05]} Bxe2
{[%emt 00:00:01] [%clk 00:00:11]} 35. Bxe2 {[%emt 00:00:02] [%clk 00:00:06]}
Rxd1 {[%clk 00:00:12]} 36. Bxd1 {[%clk 00:00:08]} Rh4 {[%emt 00:00:02] [%clk
00:00:12]} 37. Kd3 {[%emt 00:00:03] [%clk 00:00:07]} Rxf4 {[%emt 00:00:01] [%clk
00:00:13]} 38. Ke3 {[%emt 00:00:04] [%clk 00:00:06]} g5 {[%clk 00:00:13]} 39.
Bh5 {[%emt 00:00:02] [%clk 00:00:05]} a5 {[%emt 00:00:02] [%clk 00:00:14]} 40.
Kd3 {[%emt 00:00:02] [%clk 00:00:05]} Kb6 {[%clk 00:00:15]} 41. Kc3 {[%emt
00:00:03] [%clk 00:00:05]} Kc5 {[%clk 00:00:15]} 0-1

[Site "Europe Echecs"]

[Event "Championnat d'Europe de Blitz"]
[Date "2024.12.09"]
[White "Mamedov, Rauf"]
[Black "Vuckovic, Robert"]
[WhiteElo "2656"]
[BlackElo "1963"]
[Round "1.7"]
[Result "1-0"]
[TimeControl "180+2"]

1. e4 {[%emt 00:00:02] [%clk 00:03:02]} c5 {[%emt 00:00:09] [%clk 00:03:02]} 2.
Nf3 {[%clk 00:03:03]} e6 {[%clk 00:03:02]} 3. c3 {[%clk 00:03:04]} d5 {[%emt
00:00:03] [%clk 00:02:58]} 4. e5 {[%emt 00:00:09] [%clk 00:03:04]} Nc6 {[%clk
00:02:58]} 5. d4 {[%clk 00:03:06]} Bd7 {[%clk 00:02:56]} 6. Bd3 {[%clk
00:03:06]} Rc8 {[%emt 00:00:02] [%clk 00:02:57]} 7. O-O {[%emt 00:00:02] [%clk
00:03:06]} Nh6 {[%emt 00:00:08] [%clk 00:02:51]} 8. Na3 {[%emt 00:00:05] [%clk
00:03:03]} cxd4 {[%emt 00:00:22] [%clk 00:02:31]} 9. cxd4 {[%emt 00:00:01] [%clk
00:03:04]} Bxa3 {[%emt 00:00:09] [%clk 00:02:24]} 10. bxa3 {[%emt 00:00:01]
[%clk 00:03:05]} Nf5 {[%emt 00:00:07] [%clk 00:02:19]} 11. Rb1 {[%emt 00:00:04]
[%clk 00:03:04]} Ncxd4 {[%emt 00:00:30] [%clk 00:01:51]} 12. Nxd4 {[%emt
00:00:02] [%clk 00:03:03]} Nxd4 {[%emt 00:00:03] [%clk 00:01:51]} 13. Qg4 {[%emt
00:00:05] [%clk 00:03:00]} Rxc1 {[%emt 00:00:36] [%clk 00:01:17]} 14. Rfxc1
{[%emt 00:00:01] [%clk 00:03:00]} Nc6 {[%emt 00:00:02] [%clk 00:01:17]} 15. Qxg7
{[%emt 00:00:01] [%clk 00:03:01]} Rf8 {[%emt 00:00:01] [%clk 00:01:18]} 16. Rxb7
{[%emt 00:00:07] [%clk 00:02:57]} Qa5 {[%emt 00:01:15] [%clk 00:00:04]} 17. Rxc6
{[%emt 00:00:16] [%clk 00:02:44]} Bxc6 {[%emt 00:00:03] [%clk 00:00:00]} 18.
Rb8+ {[%emt 00:00:01]} Kd7 {[%emt 00:00:02] [%clk 00:00:00]} 19. Qxf8 {[%clk
00:02:44]} 1-0

[Site "Europe Echecs"]